No. of Trans,Dept Family,Entity Name,Cert Date,Supplier Name,Reference,Gross Amt,Group/Department,Type of Expenditure - Subjective Codes
1,DCMS,EH,14/06/2011,D and A 2010 and D and A 2011 Ltd,0020012215,"73,902.60",Resources Group - Operational Estates,RUNNING COSTS - Rent - Operating Leases
2,DCMS,EH,19/05/2011,Threadneedle Company Image Ltd,0020009514,"28,224.88",National Collections Group - Historic Properties Department,RUNNING COSTS - Clothing & uniforms
3,DCMS,EH,10/05/2011,ESRI (UK) Ltd,0020008933,"57,456.00",Resources Group - IMT Dept,RUNNING COSTS - Software Maintenance
4,DCMS,EH,17/06/2011,Chris Blandford Associates,0020010497,"37,154.10",National Collections Group - Property Investment Programme,OPERATIONAL COSTS - Fees for Professional Advice
5,DCMS,EH,29/06/2011,Cumbria County Council,0020013354,"35,000.00",National Collections Group - Historic Properties Department,RUNNING COSTS - Other Administration
6,DCMS,EH,14/06/2011,Concept Displays (S.W) Ltd,0020012317,"53,256.00",National Collections Group - Property Investment Programme,NET WIP MOVEMENT - WIP Refurb & Fitting Out
7,DCMS,EH,18/08/2011,Concept Displays (S.W) Ltd,0020018460,"46,501.20",National Collections Group - Property Investment Programme,NET WIP MOVEMENT - WIP Refurb & Fitting Out
8,DCMS,EH,26/07/2011,R Moulding and Co Salisbury Ltd,0020015975,"28,644.56",National Collections Group - Property Maintenance Programme,OPERATIONAL COSTS - Annual Cyclical Works-Building
9,DCMS,EH,12/04/2011,Ellis and Co Rest and Bldg Ltd,0020006591,"42,242.62",National Collections Group - Site Conservation Programme,OPERATIONAL COSTS - Works for Heritage Buildings
10,DCMS,EH,25/07/2011,W H Smith and R Ensor SAP Scheme,0020014184,"35,516.40",Resources Group - Operational Estates,RUNNING COSTS - Rent - Operating Leases
11,DCMS,EH,18/08/2011,Wessex Archaeology,0020008273,"50,000.00",Heritage Protection & Planning Group - Heritage Protection Department,OPERATIONAL COSTS - Maritime Consultants
12,DCMS,EH,23/08/2011,Wessex Archaeology,0020013945,"50,000.00",Heritage Protection & Planning Group - Heritage Protection Department,OPERATIONAL COSTS - Maritime Consultants
13,DCMS,EH,21/06/2011,Knight Frank LLP,0020012742,"16,747.36",Resources Group - Operational Estates,RUNNING COSTS - Building Service Charges
14,DCMS,EH,21/06/2011,Knight Frank LLP,0020012742,"45,353.70",Resources Group - Operational Estates,RUNNING COSTS - Rent - Operating Leases
15,DCMS,EH,31/08/2011,E Bowman and Sons Ltd,0020019303,"25,296.00",Heritage Protection & Planning Group - National Planning Department,OPERATIONAL COSTS - Works for Heritage Buildings
16,DCMS,EH,27/04/2011,Past Pleasures Ltd,0020007756,"42,210.00",National Collections Group - Historic Properties Department,SALES & PROMOTIONS - Exhibits/Displays
17,DCMS,EH,11/08/2011,Past Pleasures Ltd,0020017402,"25,531.20",National Collections Group - Historic Properties Department,SALES & PROMOTIONS - Exhibits/Displays
18,DCMS,EH,09/05/2011,Gillards Worldwide,0020008583,"54,594.64",National Collections Group - Retail Dept,OPERATIONAL COSTS - Storage & warehousing
19,DCMS,EH,13/05/2011,Gillards Worldwide,0020009408,"68,312.57",National Collections Group - Retail Dept,OPERATIONAL COSTS - Storage & warehousing
20,DCMS,EH,13/07/2011,Gillards Worldwide,0020014142,"64,589.47",National Collections Group - Retail Dept,OPERATIONAL COSTS - Storage & warehousing
21,DCMS,EH,28/07/2011,Gillards Worldwide,0020015464,"73,222.72",National Collections Group - Retail Dept,OPERATIONAL COSTS - Storage & warehousing
22,DCMS,EH,08/08/2011,Gillards Worldwide,0020017576,"73,035.27",National Collections Group - Retail Dept,OPERATIONAL COSTS - Storage & warehousing
23,DCMS,EH,27/05/2011,Denton Corker Marshall LLP,0020009345,"33,230.40",National Collections Group - Property Investment Programme,NET WIP MOVEMENT - WIP Professional Works Advice
24,DCMS,EH,16/06/2011,Historic Property Restoration Ltd,0020011654,"5,404.30",National Collections Group - Property Maintenance Programme,OPERATIONAL COSTS - Responsive Maint Building
25,DCMS,EH,16/06/2011,Historic Property Restoration Ltd,0020011654,"15,502.75",National Collections Group - Property Maintenance Programme,OPERATIONAL COSTS - Responsive Maint Building
26,DCMS,EH,16/06/2011,Historic Property Restoration Ltd,0020011654,"16,504.31",National Collections Group - Property Maintenance Programme,OPERATIONAL COSTS - Responsive Repairs M & E
27,DCMS,EH,17/06/2011,Historic Property Restoration Ltd,0020011853,"1,048.39",National Collections Group - Property Maintenance Programme,OPERATIONAL COSTS - Leased Accomodation Maint
28,DCMS,EH,17/06/2011,Historic Property Restoration Ltd,0020011853,"1,641.34",National Collections Group - Property Maintenance Programme,OPERATIONAL COSTS - Leased Accomodation Maint
29,DCMS,EH,17/06/2011,Historic Property Restoration Ltd,0020011853,"1,844.68",National Collections Group - Property Maintenance Programme,OPERATIONAL COSTS - Annual Cyclical Work M & E
30,DCMS,EH,17/06/2011,Historic Property Restoration Ltd,0020011853,"26,322.01",National Collections Group - Property Maintenance Programme,OPERATIONAL COSTS - Annual Cyclical Works-Building
31,DCMS,EH,17/06/2011,Historic Property Restoration Ltd,0020011853,"46,874.58",National Collections Group - Property Maintenance Programme,OPERATIONAL COSTS - Annual Cyclical Work M & E
32,DCMS,EH,17/06/2011,Historic Property Restoration Ltd,0020011853,"107,288.77",National Collections Group - Property Maintenance Programme,OPERATIONAL COSTS - Annual Cyclical Works-Building
33,DCMS,EH,07/07/2011,Historic Property Restoration Ltd,0020013862,208.04,National Collections Group - Property Maintenance Programme,OPERATIONAL COSTS - Leased Accomodation Maint
34,DCMS,EH,07/07/2011,Historic Property Restoration Ltd,0020013862,388.12,National Collections Group - Property Maintenance Programme,OPERATIONAL COSTS - Responsive Repairs M & E
35,DCMS,EH,07/07/2011,Historic Property Restoration Ltd,0020013862,"7,742.21",National Collections Group - Property Maintenance Programme,OPERATIONAL COSTS - Responsive Maint Building
36,DCMS,EH,07/07/2011,Historic Property Restoration Ltd,0020013862,"11,663.24",National Collections Group - Property Maintenance Programme,OPERATIONAL COSTS - Responsive Repairs M & E
37,DCMS,EH,07/07/2011,Historic Property Restoration Ltd,0020013862,"19,678.18",National Collections Group - Property Maintenance Programme,OPERATIONAL COSTS - Responsive Maint Building
38,DCMS,EH,13/07/2011,Historic Property Restoration Ltd,0020013863,"1,199.10",National Collections Group - Property Maintenance Programme,OPERATIONAL COSTS - Annual Cyclical Work M & E
39,DCMS,EH,13/07/2011,Historic Property Restoration Ltd,0020013863,"13,095.83",National Collections Group - Property Maintenance Programme,OPERATIONAL COSTS - Annual Cyclical Works-Building
40,DCMS,EH,13/07/2011,Historic Property Restoration Ltd,0020013863,"15,469.44",National Collections Group - Property Maintenance Programme,OPERATIONAL COSTS - Annual Cyclical Work M & E
41,DCMS,EH,13/07/2011,Historic Property Restoration Ltd,0020013863,"32,568.96",National Collections Group - Property Maintenance Programme,OPERATIONAL COSTS - Annual Cyclical Works-Building
42,DCMS,EH,05/08/2011,Historic Property Restoration Ltd,0020016815,29.25,National Collections Group - Property Maintenance Programme,OPERATIONAL COSTS - Planned Maintenance
43,DCMS,EH,05/08/2011,Historic Property Restoration Ltd,0020016815,"4,281.35",National Collections Group - Property Maintenance Programme,OPERATIONAL COSTS - Responsive Repairs M & E
44,DCMS,EH,05/08/2011,Historic Property Restoration Ltd,0020016815,"4,549.76",National Collections Group - Property Maintenance Programme,OPERATIONAL COSTS - Responsive Maint Building
45,DCMS,EH,05/08/2011,Historic Property Restoration Ltd,0020016815,"15,371.52",National Collections Group - Property Maintenance Programme,OPERATIONAL COSTS - Responsive Repairs M & E
46,DCMS,EH,05/08/2011,Historic Property Restoration Ltd,0020016815,"28,952.90",National Collections Group - Property Maintenance Programme,OPERATIONAL COSTS - Responsive Maint Building
47,DCMS,EH,04/08/2011,Historic Property Restoration Ltd,0020016816,215.78,National Collections Group - Property Maintenance Programme,OPERATIONAL COSTS - Leased Accomodation Maint
48,DCMS,EH,04/08/2011,Historic Property Restoration Ltd,0020016816,537.10,National Collections Group - Property Maintenance Programme,OPERATIONAL COSTS - Annual Cyclical Work M & E
49,DCMS,EH,04/08/2011,Historic Property Restoration Ltd,0020016816,"1,336.93",National Collections Group - Property Maintenance Programme,OPERATIONAL COSTS - Leased Accomodation Maint
50,DCMS,EH,04/08/2011,Historic Property Restoration Ltd,0020016816,"3,700.69",National Collections Group - Property Maintenance Programme,OPERATIONAL COSTS - Annual Cyclical Works-Building
51,DCMS,EH,04/08/2011,Historic Property Restoration Ltd,0020016816,"8,357.92",National Collections Group - Property Maintenance Programme,OPERATIONAL COSTS - Annual Cyclical Works-Building
52,DCMS,EH,04/08/2011,Historic Property Restoration Ltd,0020016816,"12,886.62",National Collections Group - Property Maintenance Programme,OPERATIONAL COSTS - Annual Cyclical Work M & E
53,DCMS,EH,28/06/2011,Footprint Impressions Mgt Ltd,0020012403,"2,400.00",National Collections Group - Historic Properties Department,SALES & PROMOTIONS - Public Relations
54,DCMS,EH,28/06/2011,Footprint Impressions Mgt Ltd,0020012403,"5,389.20",National Collections Group - Marketing Dept,SALES & PROMOTIONS - Public Relations
55,DCMS,EH,28/06/2011,Footprint Impressions Mgt Ltd,0020012403,"9,600.00",National Collections Group - Marketing Dept,SALES & PROMOTIONS - Public Relations
56,DCMS,EH,28/06/2011,Footprint Impressions Mgt Ltd,0020012403,"12,000.00",National Collections Group - Marketing Dept,SALES & PROMOTIONS - Public Relations
57,DCMS,EH,28/06/2011,Footprint Impressions Mgt Ltd,0020012405,"5,850.00",National Collections Group - Marketing Dept,SALES & PROMOTIONS - Advertising
58,DCMS,EH,28/06/2011,Footprint Impressions Mgt Ltd,0020012405,"8,300.00",National Collections Group - Marketing Dept,SALES & PROMOTIONS - Advertising
59,DCMS,EH,28/06/2011,Footprint Impressions Mgt Ltd,0020012405,"9,250.00",National Collections Group - Marketing Dept,SALES & PROMOTIONS - Advertising
60,DCMS,EH,28/06/2011,Footprint Impressions Mgt Ltd,0020012405,"9,250.00",National Collections Group - Marketing Dept,SALES & PROMOTIONS - Advertising
61,DCMS,EH,28/06/2011,Footprint Impressions Mgt Ltd,0020012405,"9,780.00",National Collections Group - Marketing Dept,SALES & PROMOTIONS - Advertising
62,DCMS,EH,25/08/2011,Central Office of Information,0020019250,31.42,National Collections Group - Marketing Dept,SALES & PROMOTIONS - Advertising
63,DCMS,EH,25/08/2011,Central Office of Information,0020019250,"39,332.10",National Collections Group - Marketing Dept,SALES & PROMOTIONS - Advertising
64,DCMS,EH,15/06/2011,Ratcliffes,0020012121,"283,500.00",Resources Group - Operational Estates,RUNNING COSTS - Rent - Operating Leases
65,DCMS,EH,31/08/2011,Visit Kent Ltd,0020019786,"30,000.00",National Collections Group - Marketing Dept,SALES & PROMOTIONS - Advertising
66,DCMS,EH,30/06/2011,Swets Information Services Ltd,0020013714,"25,000.00",National Collections Group - Curatorial Department,RUNNING COSTS - Books & Publications
67,DCMS,EH,12/05/2011,Atos Origin IT Services UK Ltd,0020003899,"32,142.00",Resources Group - IMT Dept,RUNNING COSTS - ITFM
68,DCMS,EH,09/05/2011,Grayling UK Ltd,0020008803,"30,000.00",National Collections Group - Marketing Dept,SALES & PROMOTIONS - Public Relations
69,DCMS,EH,19/05/2011,Grayling UK Ltd,0020009395,"28,538.40",National Collections Group - Marketing Dept,SALES & PROMOTIONS - Public Relations
70,DCMS,EH,01/08/2011,EDF Energy,0020010524,8.07,Resources Group - Human Resources Dept,RUNNING COSTS - Electricity
71,DCMS,EH,01/08/2011,EDF Energy,0020010524,"25,404.54",Resources Group - Human Resources Dept,RUNNING COSTS - Electricity
72,DCMS,EH,05/07/2011,EDF Energy,0020011724,"26,343.06",Resources Group - Human Resources Dept,RUNNING COSTS - Electricity
73,DCMS,EH,08/07/2011,EDF Energy,0020014429,73.90,Resources Group - Human Resources Dept,RUNNING COSTS - Electricity
74,DCMS,EH,08/07/2011,EDF Energy,0020014429,"25,152.58",Resources Group - Human Resources Dept,RUNNING COSTS - Electricity
75,DCMS,EH,31/08/2011,EDF Energy,0020017319,103.45,Resources Group - Human Resources Dept,RUNNING COSTS - Electricity
76,DCMS,EH,31/08/2011,EDF Energy,0020017319,"4,882.93",Resources Group - Human Resources Dept,RUNNING COSTS - Electricity
77,DCMS,EH,31/08/2011,EDF Energy,0020017319,"20,152.43",Resources Group - Human Resources Dept,RUNNING COSTS - Electricity
78,DCMS,EH,26/08/2011,Sinclair Knight Merz (Europe) Ltd,0020019448,"8,880.00",National Collections Group - Property Investment Programme,NET WIP MOVEMENT - WIP Professional Works Advice
79,DCMS,EH,26/08/2011,Sinclair Knight Merz (Europe) Ltd,0020019448,"20,280.00",National Collections Group - Property Investment Programme,NET WIP MOVEMENT - WIP Professional Works Advice
80,DCMS,EH,02/08/2011,Gray's Inn Square Chambers Ltd,0020016220,"55,794.00",National Collections Group - Property Investment Programme,OPERATIONAL COSTS - Fees for Professional Advice
81,DCMS,EH,28/06/2011,Donovan O'Farrell,0020013454,"54,750.00",Resources Group - Operational Estates,RUNNING COSTS - Rent - Operating Leases
82,DCMS,EH,06/06/2011,Prudential Property Investment  Managers,0020010961,"-55,516.84",Resources Group - Operational Estates,RUNNING COSTS - Building Service Charges
83,DCMS,EH,14/06/2011,Prudential Property Investment  Managers,0020011729,"37,724.00",Resources Group - Operational Estates,RUNNING COSTS - Building Service Charges
84,DCMS,EH,14/06/2011,Prudential Property Investment  Managers,0020011729,"55,303.25",Resources Group - Operational Estates,RUNNING COSTS - Rent - Operating Leases
85,DCMS,EH,14/06/2011,Prudential Property Investment  Managers,0020011733,"99,785.00",Resources Group - Operational Estates,RUNNING COSTS - Building Service Charges
86,DCMS,EH,14/06/2011,Prudential Property Investment  Managers,0020011733,"186,401.50",Resources Group - Operational Estates,RUNNING COSTS - Rent - Operating Leases
87,DCMS,EH,13/05/2011,Enterprise Rent A Car UK Ltd,0020009620,"31,386.83",Resources Group - Corporate,RUNNING COSTS - Car Hire
88,DCMS,EH,08/06/2011,Enterprise Rent A Car UK Ltd,0020011555,6.00,Resources Group - Corporate,RUNNING COSTS - Car Hire
89,DCMS,EH,08/06/2011,Enterprise Rent A Car UK Ltd,0020011555,"30,733.36",Resources Group - Corporate,RUNNING COSTS - Car Hire
90,DCMS,EH,25/07/2011,Enterprise Rent A Car UK Ltd,0020016193,"30,985.40",Resources Group - Corporate,RUNNING COSTS - Car Hire
91,DCMS,EH,03/08/2011,Enterprise Rent A Car UK Ltd,0020017295,"36,778.54",Resources Group - Corporate,RUNNING COSTS - Car Hire
92,DCMS,EH,19/04/2011,Click Netherfield Ltd,0020007083,"41,838.72",Heritage Protection & Planning Group - National Planning Department,OPERATIONAL COSTS - Fees for Professional Advice
93,DCMS,EH,25/05/2011,Sanderson RBS Ltd,0020010380,"39,315.90",Resources Group - IMT Dept,RUNNING COSTS - Software Maintenance
94,DCMS,EH,26/08/2011,Sanderson RBS Ltd,0020019708,"40,221.30",Resources Group - IMT Dept,RUNNING COSTS - Software Maintenance
95,DCMS,EH,15/07/2011,DeckersSnoeck NV-SA,0020013577,"3,457.00",Heritage Protection & Planning Group - Heritage Protection & Planning Centre,TOTAL STOCK - Finished Guidebooks
96,DCMS,EH,15/07/2011,DeckersSnoeck NV-SA,0020013577,"5,186.00",Heritage Protection & Planning Group - Heritage Protection & Planning Centre,TOTAL STOCK - Finished Guidebooks
97,DCMS,EH,15/07/2011,DeckersSnoeck NV-SA,0020013577,"9,507.00",Heritage Protection & Planning Group - Heritage Protection & Planning Centre,TOTAL STOCK - Finished Guidebooks
98,DCMS,EH,15/07/2011,DeckersSnoeck NV-SA,0020013577,"12,100.00",Heritage Protection & Planning Group - Heritage Protection & Planning Centre,TOTAL STOCK - Finished Guidebooks
99,DCMS,EH,12/05/2011,Seazone Solutions Ltd,0020008479,"35,563.94",Resources Group - IMT Dept,OTHER EXPENDITURE - Software Licences <10k
100,DCMS,EH,20/04/2011,Pace Fuelcare Ltd,0020007127,"29,004.48",National Collections Group - Historic Properties Department,RUNNING COSTS - Gas & Oil
101,DCMS,EH,29/07/2011,Seven,0020013174,"205,842.34",National Collections Group - Marketing Dept,SALES & PROMOTIONS - Promotional Material
102,DCMS,EH,14/06/2011,AIS Total Security Ltd,0020009086,"25,860.78",National Collections Group - Property Maintenance Programme,OPERATIONAL COSTS - Annual Cyclical Work M & E
103,DCMS,EH,25/08/2011,Media Managers Ltd,0020019444,"37,040.00",National Collections Group - Marketing Dept,SALES & PROMOTIONS - Advertising
104,DCMS,EH,25/07/2011,BRB Residuary Ltd,0020013747,"9,465.00",Resources Group - Operational Estates,RUNNING COSTS - Building Service Charges
105,DCMS,EH,25/07/2011,BRB Residuary Ltd,0020013747,"22,627.50",Resources Group - Operational Estates,RUNNING COSTS - Rent - Operating Leases
106,DCMS,EH,09/05/2011,Coulson Group Ltd,0020008483,"246,191.57",National Collections Group - Property Investment Programme,NET WIP MOVEMENT - WIP Operational Building Works
107,DCMS,EH,31/05/2011,Coulson Group Ltd,0020010790,"264,819.05",National Collections Group - Property Investment Programme,NET WIP MOVEMENT - WIP Operational Building Works
108,DCMS,EH,06/07/2011,Coulson Group Ltd,0020014060,"320,791.52",National Collections Group - Property Investment Programme,NET WIP MOVEMENT - WIP Operational Building Works
109,DCMS,EH,28/07/2011,Coulson Group Ltd,0020016527,"289,573.28",National Collections Group - Property Investment Programme,NET WIP MOVEMENT - WIP Operational Building Works
110,DCMS,EH,10/06/2011,Quadron Services Ltd,0020011388,360.00,National Collections Group - Property Maintenance Programme,OPERATIONAL COSTS - Annual Cyclical Works-Building
111,DCMS,EH,10/06/2011,Quadron Services Ltd,0020011388,"2,922.10",National Collections Group - Property Maintenance Programme,OPERATIONAL COSTS - Annual Cyclical Works-Building
112,DCMS,EH,10/06/2011,Quadron Services Ltd,0020011388,"13,117.57",National Collections Group - Property Maintenance Programme,OPERATIONAL COSTS - Annual Cyclical Works-Building
113,DCMS,EH,10/06/2011,Quadron Services Ltd,0020011388,"21,312.05",National Collections Group - Property Maintenance Programme,OPERATIONAL COSTS - Annual Cyclical Works-Building
114,DCMS,EH,28/06/2011,Quadron Services Ltd,0020012744,"4,711.38",National Collections Group - Property Maintenance Programme,OPERATIONAL COSTS - Annual Cyclical Works-Building
115,DCMS,EH,28/06/2011,Quadron Services Ltd,0020012744,"6,309.72",National Collections Group - Property Maintenance Programme,OPERATIONAL COSTS - Annual Cyclical Works-Building
116,DCMS,EH,28/06/2011,Quadron Services Ltd,0020012744,"18,687.12",National Collections Group - Property Maintenance Programme,OPERATIONAL COSTS - Annual Cyclical Works-Building
117,DCMS,EH,23/05/2011,Cultural Innovations Ltd,0020008573,"108,885.04",National Collections Group - Property Investment Programme,NET WIP MOVEMENT - WIP Operational Building Works
118,DCMS,EH,22/06/2011,Cultural Innovations Ltd,0020012136,"43,316.92",National Collections Group - Property Investment Programme,NET WIP MOVEMENT - WIP Operational Building Works
119,DCMS,EH,05/07/2011,J R Event Services LTD,0020013605,"34,356.00",National Collections Group - Historic Properties Department,OPERATIONAL COSTS - Plant & equipment hire
120,DCMS,EH,10/05/2011,Apollo Lifts Ltd,0000789036,"43,942.29",National Collections Group - Property Investment Programme,NET WIP MOVEMENT - WIP Refurb & Fitting Out
121,DCMS,EH,10/05/2011,Apollo Lifts Ltd,0020004411,"82,276.87",National Collections Group - Property Investment Programme,NET WIP MOVEMENT - WIP Refurb & Fitting Out
122,DCMS,EH,05/08/2011,Ian Williams Ltd,0020017181,"45,289.14",Heritage Protection & Planning Group - National Planning Department,OPERATIONAL COSTS - Works for Heritage Buildings
123,DCMS,EH,05/05/2011,Kier Southern,0020006696,"10,536.90",National Collections Group - Property Investment Programme,NET WIP MOVEMENT - WIP Refurb & Fitting Out
124,DCMS,EH,05/05/2011,Kier Southern,0020006696,"24,000.00",National Collections Group - Property Maintenance Programme,OPERATIONAL COSTS - Planned Maintenance
125,DCMS,EH,05/05/2011,Kier Southern,0020006696,"104,321.16",National Collections Group - Site Conservation Programme,OPERATIONAL COSTS - Works for Heritage Buildings
126,DCMS,EH,05/05/2011,Kier Southern,0020006696,"313,727.94",National Collections Group - Property Investment Programme,NET WIP MOVEMENT - WIP Refurb & Fitting Out
127,DCMS,EH,28/04/2011,Kier Southern,0020006698,"201,780.00",National Collections Group - Site Conservation Programme,OPERATIONAL COSTS - Works for Heritage Buildings
128,DCMS,EH,19/05/2011,Kier Southern,0020009148,"46,164.00",National Collections Group - Property Investment Programme,NET WIP MOVEMENT - WIP Refurb & Fitting Out
129,DCMS,EH,25/07/2011,Kier Southern,0020013055,"24,000.00",National Collections Group - Property Maintenance Programme,OPERATIONAL COSTS - Planned Maintenance
130,DCMS,EH,25/07/2011,Kier Southern,0020013055,"340,488.00",National Collections Group - Property Investment Programme,NET WIP MOVEMENT - WIP Refurb & Fitting Out
131,DCMS,EH,28/04/2011,Capita Secure Information Systems Ltd,0020007180,"21,888.00",Resources Group - IMT Dept,RUNNING COSTS - Software Maintenance
132,DCMS,EH,28/04/2011,Capita Secure Information Systems Ltd,0020007180,"21,888.00",Resources Group - IMT Dept,RUNNING COSTS - Software Maintenance
133,DCMS,EH,28/04/2011,Capita Secure Information Systems Ltd,0020007180,"32,448.00",Resources Group - IMT Dept,RUNNING COSTS - Software Maintenance
134,DCMS,EH,15/06/2011,Capita Secure Information Systems Ltd,0020012387,"329,554.80",Resources Group - IMT Dept,RUNNING COSTS - ITFM
135,DCMS,EH,17/06/2011,Capita Secure Information Systems Ltd,0020012388,"329,554.80",Resources Group - IMT Dept,RUNNING COSTS - ITFM
136,DCMS,EH,06/07/2011,Capita Secure Information Systems Ltd,0020012389,"329,554.80",Resources Group - IMT Dept,RUNNING COSTS - ITFM
137,DCMS,EH,02/08/2011,Capita Secure Information Systems Ltd,0020016667,"329,554.80",Resources Group - IMT Dept,RUNNING COSTS - ITFM
138,DCMS,EH,24/08/2011,Capita Secure Information Systems Ltd,0020018496,"329,554.80",Resources Group - IMT Dept,RUNNING COSTS - ITFM
139,DCMS,EH,16/05/2011,J.J.Jones & Sons (St Austell) Ltd,0020009573,383.16,National Collections Group - Property Investment Programme,NET WIP MOVEMENT - WIP Refurb & Fitting Out
140,DCMS,EH,16/05/2011,J.J.Jones & Sons (St Austell) Ltd,0020009573,"12,534.00",National Collections Group - Property Investment Programme,OPERATIONAL COSTS - Works for Heritage Buildings
141,DCMS,EH,16/05/2011,J.J.Jones & Sons (St Austell) Ltd,0020009573,"14,425.20",National Collections Group - Property Investment Programme,NET WIP MOVEMENT - WIP Refurb & Fitting Out
142,DCMS,EH,29/06/2011,OmniTicket Network Ltd,0020013441,343.80,National Collections Group - Property Investment Programme,SALES & PROMOTIONS - Promotional Material
143,DCMS,EH,29/06/2011,OmniTicket Network Ltd,0020013441,715.44,National Collections Group - Property Investment Programme,OPERATIONAL COSTS - Works for Heritage Buildings
144,DCMS,EH,29/06/2011,OmniTicket Network Ltd,0020013441,"1,200.00",National Collections Group - Property Investment Programme,OPERATIONAL COSTS - Works for Heritage Buildings
145,DCMS,EH,29/06/2011,OmniTicket Network Ltd,0020013441,"2,400.00",National Collections Group - Property Investment Programme,RUNNING COSTS - Training
146,DCMS,EH,29/06/2011,OmniTicket Network Ltd,0020013441,"4,200.00",National Collections Group - Property Investment Programme,OPERATIONAL COSTS - Works for Heritage Buildings
147,DCMS,EH,29/06/2011,OmniTicket Network Ltd,0020013441,"24,600.00",National Collections Group - Property Investment Programme,OPERATIONAL COSTS - Works for Heritage Buildings
148,DCMS,EH,17/08/2011,OmniTicket Network Ltd,0020018274,"4,233.60",National Collections Group - Property Investment Programme,OPERATIONAL COSTS - Works for Heritage Buildings
149,DCMS,EH,17/08/2011,OmniTicket Network Ltd,0020018274,"10,272.00",National Collections Group - Property Investment Programme,OPERATIONAL COSTS - Works for Heritage Buildings
150,DCMS,EH,17/08/2011,OmniTicket Network Ltd,0020018274,"22,800.00",National Collections Group - Property Investment Programme,OPERATIONAL COSTS - Works for Heritage Buildings
151,DCMS,EH,09/05/2011,English Landscapes Ltd,0020008063,"43,079.42",National Collections Group - Property Investment Programme,NET WIP MOVEMENT - WIP Landscape Works
152,DCMS,EH,28/06/2011,English Landscapes Ltd,0020011021,"82,244.48",National Collections Group - Property Investment Programme,NET WIP MOVEMENT - WIP Landscape Works
153,DCMS,EH,28/06/2011,English Landscapes Ltd,0020013136,"133,094.95",National Collections Group - Property Investment Programme,NET WIP MOVEMENT - WIP Landscape Works
154,DCMS,EH,15/08/2011,English Landscapes Ltd,0020016809,"146,306.62",National Collections Group - Property Investment Programme,NET WIP MOVEMENT - WIP Landscape Works
155,DCMS,EH,29/06/2011,Front Ideas Ltd,0020012986,"44,988.00",National Collections Group - Marketing Dept,SALES & PROMOTIONS - Advertising
156,DCMS,EH,15/07/2011,Npower Commercial Gas Limited,0020013405,"-10,783.46",National Collections Group - Historic Properties Department,RUNNING COSTS - Gas & Oil
157,DCMS,EH,15/07/2011,Npower Commercial Gas Limited,0020013405,3.85,National Collections Group - Historic Properties Department,RUNNING COSTS - Gas & Oil
158,DCMS,EH,15/07/2011,Npower Commercial Gas Limited,0020013405,939.42,National Collections Group - Historic Properties Department,RUNNING COSTS - Gas & Oil
159,DCMS,EH,15/07/2011,Npower Commercial Gas Limited,0020013405,"42,225.81",National Collections Group - Historic Properties Department,RUNNING COSTS - Gas & Oil
160,DCMS,EH,19/04/2011,ABEX Ltd,0020007343,"30,120.00",National Collections Group - Property Investment Programme,NET WIP MOVEMENT - WIP Refurb & Fitting Out
161,DCMS,EH,16/06/2011,Wyndeham Web Ltd,0020010979,"2,786.42",National Collections Group - Marketing Dept,SALES & PROMOTIONS - Promotional Material
162,DCMS,EH,16/06/2011,Wyndeham Web Ltd,0020010979,"23,232.17",National Collections Group - Marketing Dept,SALES & PROMOTIONS - Promotional Material
163,DCMS,EH,05/08/2011,Wyndeham Web Ltd,0020015045,"3,149.35",National Collections Group - Marketing Dept,SALES & PROMOTIONS - Promotional Material
164,DCMS,EH,05/08/2011,Wyndeham Web Ltd,0020015045,"25,427.31",National Collections Group - Marketing Dept,SALES & PROMOTIONS - Promotional Material
165,DCMS,EH,10/06/2011,GBN Office Solutions Ltd,0020011485,330.00,National Collections Group - Property Investment Programme,NET WIP MOVEMENT - WIP Refurb & Fitting Out
166,DCMS,EH,10/06/2011,GBN Office Solutions Ltd,0020011485,"1,765.94",National Collections Group - Property Investment Programme,NET WIP MOVEMENT - WIP Refurb & Fitting Out
167,DCMS,EH,10/06/2011,GBN Office Solutions Ltd,0020011485,"3,972.00",National Collections Group - Property Investment Programme,NET WIP MOVEMENT - WIP Refurb & Fitting Out
168,DCMS,EH,10/06/2011,GBN Office Solutions Ltd,0020011485,"4,579.20",National Collections Group - Property Investment Programme,NET WIP MOVEMENT - WIP Refurb & Fitting Out
169,DCMS,EH,10/06/2011,GBN Office Solutions Ltd,0020011485,"5,625.10",National Collections Group - Property Investment Programme,NET WIP MOVEMENT - WIP Refurb & Fitting Out
170,DCMS,EH,10/06/2011,GBN Office Solutions Ltd,0020011485,"9,548.40",National Collections Group - Property Investment Programme,NET WIP MOVEMENT - WIP Refurb & Fitting Out
171,DCMS,EH,15/06/2011,Hadrian's Wall Heritage Ltd,0090511606,"101,500.00",Heritage Protection & Planning Group - National Planning Department,GRANTS PAYABLE - OTHER GRANTS
172,DCMS,EH,29/06/2011,South Derbyshire D C,0090511648,"46,894.00",Heritage Protection & Planning Group - National Planning Department,GRANTS PAYABLE - AREA
173,DCMS,EH,23/05/2011,East Riding of Yorkshire Council,0090511509,"38,854.00",Heritage Protection & Planning Group - National Planning Department,GRANTS PAYABLE - AREA
174,DCMS,EH,29/06/2011,South Holland District Council,0090511680,"107,398.00",Heritage Protection & Planning Group - National Planning Department,GRANTS PAYABLE - AREA
175,DCMS,EH,29/06/2011,The Harewood Estate,0090511679,"54,000.00",Heritage Protection & Planning Group - National Planning Department,GRANTS PAYABLE - HISTORIC BUILDINGS
176,DCMS,EH,11/07/2011,Soc for Protect of Ancient Bldgs,0090511723,"25,000.00",Heritage Protection & Planning Group - National Planning Department,GRANTS PAYABLE - CATHEDRALS
177,DCMS,EH,25/07/2011,A & J Sanella,0090511791,"99,500.00",Heritage Protection & Planning Group - National Planning Department,GRANTS PAYABLE - HISTORIC BUILDINGS
178,DCMS,EH,23/05/2011,Friends of Pinchinthorpe Hall,0090511520,610.00,Heritage Protection & Planning Group - National Planning Department,GRANTS PAYABLE - OTHER GRANTS
179,DCMS,EH,23/05/2011,Friends of Pinchinthorpe Hall,0090511520,"28,670.00",Heritage Protection & Planning Group - National Planning Department,GRANTS PAYABLE - OTHER GRANTS
180,DCMS,EH,05/07/2011,Norfolk Museums Service,0081001631,"54,680.00",Heritage Protection & Planning Group - Heritage Protection Department,ENABLING PROGRAMMES - Historic Environ Prog Grants
181,DCMS,EH,25/07/2011,Holy Trinity Walton Breck PCC,0090511798,"87,500.00",Heritage Protection & Planning Group - National Planning Department,GRANTS PAYABLE - PLACES OF WORSHIP
182,DCMS,EH,20/06/2011,Holy Trinity Littleborough,0090511632,"86,000.00",Heritage Protection & Planning Group - National Planning Department,GRANTS PAYABLE - PLACES OF WORSHIP
183,DCMS,EH,04/05/2011,Barn at Manor Farm,0090511402,"25,000.00",Heritage Protection & Planning Group - National Planning Department,GRANTS PAYABLE - HISTORIC BUILDINGS
184,DCMS,EH,15/06/2011,St David's Church Restorations,0090511598,"34,000.00",Heritage Protection & Planning Group - National Planning Department,GRANTS PAYABLE - PLACES OF WORSHIP
185,DCMS,EH,20/06/2011,Much Marcle PCC,0090511619,"27,500.00",Heritage Protection & Planning Group - National Planning Department,GRANTS PAYABLE - PLACES OF WORSHIP
186,DCMS,EH,12/08/2011,St Peter & St Paul Buckingham PCC,0090511868,"47,323.00",Heritage Protection & Planning Group - National Planning Department,GRANTS PAYABLE - PLACES OF WORSHIP
187,DCMS,EH,13/07/2011,PCC of Slapton,0090511729,"65,500.00",Heritage Protection & Planning Group - National Planning Department,GRANTS PAYABLE - PLACES OF WORSHIP
188,DCMS,EH,24/08/2011,Swalcliffe PCC,0090511941,"35,000.00",Heritage Protection & Planning Group - National Planning Department,GRANTS PAYABLE - PLACES OF WORSHIP
189,DCMS,EH,09/05/2011,Wighill PCC,0090511418,"44,100.00",Heritage Protection & Planning Group - National Planning Department,GRANTS PAYABLE - PLACES OF WORSHIP
190,DCMS,EH,20/07/2011,Acton Burnell PCC,0090511781,"48,000.00",Heritage Protection & Planning Group - National Planning Department,GRANTS PAYABLE - PLACES OF WORSHIP
191,DCMS,EH,11/05/2011,Parochial Church Council of Helston,0090511433,"64,640.00",Heritage Protection & Planning Group - National Planning Department,GRANTS PAYABLE - PLACES OF WORSHIP
192,DCMS,EH,20/04/2011,Harston PCC,0090511309,"61,500.00",Heritage Protection & Planning Group - National Planning Department,GRANTS PAYABLE - PLACES OF WORSHIP
193,DCMS,EH,10/08/2011,Harston PCC,0090511861,"52,176.00",Heritage Protection & Planning Group - National Planning Department,GRANTS PAYABLE - PLACES OF WORSHIP
194,DCMS,EH,25/07/2011,St Michael in the Hamlet PCC,0090511799,"81,828.00",Heritage Protection & Planning Group - National Planning Department,GRANTS PAYABLE - PLACES OF WORSHIP
195,DCMS,EH,13/07/2011,Ivinghoe with Pitstone PCC,0090511731,"35,000.00",Heritage Protection & Planning Group - National Planning Department,GRANTS PAYABLE - PLACES OF WORSHIP
196,DCMS,EH,13/06/2011,Hopton Castle Preservation Trust,0090511590,"60,000.00",Heritage Protection & Planning Group - National Planning Department,GRANTS PAYABLE - HISTORIC BUILDINGS
197,DCMS,EH,15/06/2011,Memorial Community Church Plaistow,0090511603,"68,000.00",Heritage Protection & Planning Group - National Planning Department,GRANTS PAYABLE - PLACES OF WORSHIP
198,DCMS,EH,25/05/2011,St Pauls Peel PCC,0090511535,"93,000.00",Heritage Protection & Planning Group - National Planning Department,GRANTS PAYABLE - PLACES OF WORSHIP
199,DCMS,EH,25/07/2011,St Johns Methodist Church Hindley,0090511790,"84,000.00",Heritage Protection & Planning Group - National Planning Department,GRANTS PAYABLE - PLACES OF WORSHIP
200,DCMS,EH,18/05/2011,St Johns PCC Leytonstone,0090511491,"43,200.00",Heritage Protection & Planning Group - National Planning Department,GRANTS PAYABLE - PLACES OF WORSHIP
201,DCMS,EH,25/07/2011,PCC of the Highoak Group Parish,0090511800,640.00,Heritage Protection & Planning Group - National Planning Department,GRANTS PAYABLE - PLACES OF WORSHIP
202,DCMS,EH,25/07/2011,PCC of the Highoak Group Parish,0090511800,"49,682.00",Heritage Protection & Planning Group - National Planning Department,GRANTS PAYABLE - PLACES OF WORSHIP
203,DCMS,EH,27/07/2011,Little Gransden PCC,0090511804,"32,000.00",Heritage Protection & Planning Group - National Planning Department,GRANTS PAYABLE - PLACES OF WORSHIP
204,DCMS,EH,29/06/2011,PCC St Martin of Tours Bilboro,0090511647,"36,960.00",Heritage Protection & Planning Group - National Planning Department,GRANTS PAYABLE - PLACES OF WORSHIP
205,DCMS,EH,20/04/2011,St Walburges Parish,0090511323,"51,337.00",Heritage Protection & Planning Group - National Planning Department,GRANTS PAYABLE - PLACES OF WORSHIP
206,DCMS,EH,13/05/2011,St Peters PCC Cowfold,0090511468,"61,500.00",Heritage Protection & Planning Group - National Planning Department,GRANTS PAYABLE - PLACES OF WORSHIP
207,DCMS,EH,31/08/2011,St Peters PCC Cowfold,0090511967,"55,350.00",Heritage Protection & Planning Group - National Planning Department,GRANTS PAYABLE - PLACES OF WORSHIP
208,DCMS,EH,13/04/2011,St Paul PCC Spalding,0090511253,"30,750.00",Heritage Protection & Planning Group - National Planning Department,GRANTS PAYABLE - PLACES OF WORSHIP
209,DCMS,EH,27/05/2011,Churchwardens of Watton PCC,0090511551,"83,500.00",Heritage Protection & Planning Group - National Planning Department,GRANTS PAYABLE - PLACES OF WORSHIP
210,DCMS,EH,12/08/2011,Churchwardens of Watton PCC,0090511866,"75,150.00",Heritage Protection & Planning Group - National Planning Department,GRANTS PAYABLE - PLACES OF WORSHIP
211,DCMS,EH,12/05/2011,St Lawrence PCC Denton,0090511443,"27,500.00",Heritage Protection & Planning Group - National Planning Department,GRANTS PAYABLE - PLACES OF WORSHIP
212,DCMS,EH,17/08/2011,PCC of Elland St Marys Church,0090511897,"63,500.00",Heritage Protection & Planning Group - National Planning Department,GRANTS PAYABLE - PLACES OF WORSHIP
213,DCMS,EH,22/08/2011,St John on Bethnal Green PCC,0090511907,"50,695.00",Heritage Protection & Planning Group - National Planning Department,GRANTS PAYABLE - PLACES OF WORSHIP
214,DCMS,EH,28/04/2011,Ossett and Gawthorpe PCC,0090511394,"36,306.00",Heritage Protection & Planning Group - National Planning Department,GRANTS PAYABLE - PLACES OF WORSHIP
215,DCMS,EH,18/07/2011,Ossett and Gawthorpe PCC,0090511738,"41,500.00",Heritage Protection & Planning Group - National Planning Department,GRANTS PAYABLE - PLACES OF WORSHIP
216,DCMS,EH,18/05/2011,Norwich Historic Church Trust Ltd,0090511486,"100,569.00",Heritage Protection & Planning Group - National Planning Department,GRANTS PAYABLE - HISTORIC BUILDINGS
217,DCMS,EH,29/06/2011,Christ Church Staincliffe,0090511674,"81,500.00",Heritage Protection & Planning Group - National Planning Department,GRANTS PAYABLE - PLACES OF WORSHIP
218,DCMS,EH,17/08/2011,Christ Church Staincliffe,0090511896,"30,500.00",Heritage Protection & Planning Group - National Planning Department,GRANTS PAYABLE - PLACES OF WORSHIP
219,DCMS,EH,17/08/2011,Christ Church Staincliffe,0090511896,"42,850.00",Heritage Protection & Planning Group - National Planning Department,GRANTS PAYABLE - PLACES OF WORSHIP
220,DCMS,EH,11/05/2011,London Borough Of Haringey,0090511438,"30,258.00",Heritage Protection & Planning Group - National Planning Department,GRANTS PAYABLE - AREA
221,DCMS,EH,11/05/2011,London Borough Of Haringey,0090511439,"73,238.00",Heritage Protection & Planning Group - National Planning Department,GRANTS PAYABLE - AREA
222,DCMS,EH,27/04/2011,The PCC of Tedstone Delamere,0090511362,"30,000.00",Heritage Protection & Planning Group - National Planning Department,GRANTS PAYABLE - PLACES OF WORSHIP
223,DCMS,EH,20/07/2011,The PCC of Tedstone Delamere,0090511778,"27,000.00",Heritage Protection & Planning Group - National Planning Department,GRANTS PAYABLE - PLACES OF WORSHIP
224,DCMS,EH,18/07/2011,PCC of St Lukes,0090511736,"41,500.00",Heritage Protection & Planning Group - National Planning Department,GRANTS PAYABLE - PLACES OF WORSHIP
225,DCMS,EH,20/07/2011,Doddington PCC,0090511782,"43,200.00",Heritage Protection & Planning Group - National Planning Department,GRANTS PAYABLE - PLACES OF WORSHIP
226,DCMS,EH,29/06/2011,St Nicholas Church Whiston,0090511661,"64,000.00",Heritage Protection & Planning Group - National Planning Department,GRANTS PAYABLE - PLACES OF WORSHIP
227,DCMS,EH,08/08/2011,Illogan & Trevenson Churches,0090511853,"85,500.00",Heritage Protection & Planning Group - National Planning Department,GRANTS PAYABLE - PLACES OF WORSHIP
228,DCMS,EH,17/08/2011,Saint John's PCC Failsworth,0090511900,"53,000.00",Heritage Protection & Planning Group - National Planning Department,GRANTS PAYABLE - PLACES OF WORSHIP
229,DCMS,EH,27/04/2011,The Historic Chapels Trust,0090511370,"50,537.00",Heritage Protection & Planning Group - National Planning Department,GRANTS PAYABLE - HISTORIC BUILDINGS
230,DCMS,EH,17/08/2011,The Historic Chapels Trust,0090511898,"29,806.00",Heritage Protection & Planning Group - National Planning Department,GRANTS PAYABLE - HISTORIC BUILDINGS
231,DCMS,EH,12/08/2011,Diocese of Ripon and Leeds,0090511865,"30,896.00",Heritage Protection & Planning Group - National Planning Department,GRANTS PAYABLE - OTHER GRANTS
232,DCMS,EH,27/07/2011,Hardham Priory,0090511816,"30,000.00",Heritage Protection & Planning Group - National Planning Department,GRANTS PAYABLE - HISTORIC BUILDINGS
233,DCMS,EH,13/04/2011,Heritage Trust of Lincolnshire,0090511255,"228,690.00",Heritage Protection & Planning Group - National Planning Department,GRANTS PAYABLE - HISTORIC BUILDINGS
234,DCMS,EH,23/05/2011,Baginton Castle,0090511501,"50,462.00",Heritage Protection & Planning Group - National Planning Department,GRANTS PAYABLE - HISTORIC BUILDINGS
235,DCMS,EH,01/08/2011,Baginton Castle,0090511819,"40,370.00",Heritage Protection & Planning Group - National Planning Department,GRANTS PAYABLE - HISTORIC BUILDINGS
236,DCMS,EH,18/04/2011,The Vivat Trust Ltd,0090511268,"35,000.00",Heritage Protection & Planning Group - National Planning Department,GRANTS PAYABLE - HISTORIC BUILDINGS
237,DCMS,EH,11/07/2011,The Vivat Trust Ltd,0090511726,"27,216.00",Heritage Protection & Planning Group - National Planning Department,GRANTS PAYABLE - HISTORIC BUILDINGS
238,DCMS,EH,15/06/2011,High Oak PCC,0090511562,"16,200.00",Heritage Protection & Planning Group - National Planning Department,GRANTS PAYABLE - PLACES OF WORSHIP
239,DCMS,EH,15/06/2011,High Oak PCC,0090511562,"18,000.00",Heritage Protection & Planning Group - National Planning Department,GRANTS PAYABLE - PLACES OF WORSHIP
240,DCMS,EH,27/06/2011,Cranwich PCC,0090511644,"45,080.00",Heritage Protection & Planning Group - National Planning Department,GRANTS PAYABLE - PLACES OF WORSHIP
241,DCMS,EH,09/05/2011,PCC of St Mary's Dilwyn,0090511420,"35,500.00",Heritage Protection & Planning Group - National Planning Department,GRANTS PAYABLE - PLACES OF WORSHIP
242,DCMS,EH,25/07/2011,Ufford PCC,0090511801,"33,750.00",Heritage Protection & Planning Group - National Planning Department,GRANTS PAYABLE - PLACES OF WORSHIP
243,DCMS,EH,20/06/2011,Union Chapel Restoration Appeal,0090511614,"38,500.00",Heritage Protection & Planning Group - National Planning Department,GRANTS PAYABLE - PLACES OF WORSHIP
244,DCMS,EH,21/06/2011,Union Chapel Restoration Appeal,0090511643,"98,500.00",Heritage Protection & Planning Group - National Planning Department,GRANTS PAYABLE - PLACES OF WORSHIP
245,DCMS,EH,26/08/2011,Union Chapel Restoration Appeal,0090511953,"78,800.00",Heritage Protection & Planning Group - National Planning Department,GRANTS PAYABLE - PLACES OF WORSHIP
246,DCMS,EH,26/08/2011,Union Chapel Restoration Appeal,0090511954,"34,650.00",Heritage Protection & Planning Group - National Planning Department,GRANTS PAYABLE - PLACES OF WORSHIP
247,DCMS,EH,01/06/2011,Shropham PCC,0090511559,"33,103.00",Heritage Protection & Planning Group - National Planning Department,GRANTS PAYABLE - PLACES OF WORSHIP
248,DCMS,EH,13/06/2011,St Kenelms PCC,0090511584,"28,761.00",Heritage Protection & Planning Group - National Planning Department,GRANTS PAYABLE - PLACES OF WORSHIP
249,DCMS,EH,11/07/2011,Holy Trinity & St Mary's PCC,0090511724,"47,000.00",Heritage Protection & Planning Group - National Planning Department,GRANTS PAYABLE - PLACES OF WORSHIP
250,DCMS,EH,18/04/2011,"PCC of St Mary, Westonzoyland",0090511272,"33,943.00",Heritage Protection & Planning Group - National Planning Department,GRANTS PAYABLE - PLACES OF WORSHIP
251,DCMS,EH,08/08/2011,St Marys the Virgin Baldock PCC,0090511855,"29,200.00",Heritage Protection & Planning Group - National Planning Department,GRANTS PAYABLE - PLACES OF WORSHIP
252,DCMS,EH,29/06/2011,St Peters PCC Thornbury,0090511646,"72,000.00",Heritage Protection & Planning Group - National Planning Department,GRANTS PAYABLE - PLACES OF WORSHIP
253,DCMS,EH,08/06/2011,PCC of St Cuthberts Fishlake,0090511575,"49,500.00",Heritage Protection & Planning Group - National Planning Department,GRANTS PAYABLE - PLACES OF WORSHIP
254,DCMS,EH,12/05/2011,St Stephen and All Martyrs,0090511448,"70,384.00",Heritage Protection & Planning Group - National Planning Department,GRANTS PAYABLE - PLACES OF WORSHIP
255,DCMS,EH,27/07/2011,St James Priory Project,0090511810,"153,000.00",Heritage Protection & Planning Group - National Planning Department,GRANTS PAYABLE - HISTORIC BUILDINGS
256,DCMS,EH,27/06/2011,Tatterford PCC,0090511645,"70,500.00",Heritage Protection & Planning Group - National Planning Department,GRANTS PAYABLE - PLACES OF WORSHIP
257,DCMS,EH,22/08/2011,Tatterford PCC,0090511925,"35,250.00",Heritage Protection & Planning Group - National Planning Department,GRANTS PAYABLE - PLACES OF WORSHIP
258,DCMS,EH,12/08/2011,All Saints Slingsby PCC,0090511862,"27,500.00",Heritage Protection & Planning Group - National Planning Department,GRANTS PAYABLE - PLACES OF WORSHIP
259,DCMS,EH,20/04/2011,Boyton PCC,0090511310,"30,150.00",Heritage Protection & Planning Group - National Planning Department,GRANTS PAYABLE - PLACES OF WORSHIP
260,DCMS,EH,04/07/2011,PCC of Church of St Peter,0090511696,"46,500.00",Heritage Protection & Planning Group - National Planning Department,GRANTS PAYABLE - PLACES OF WORSHIP
261,DCMS,EH,29/06/2011,St John PCC,0090511675,"67,000.00",Heritage Protection & Planning Group - National Planning Department,GRANTS PAYABLE - PLACES OF WORSHIP
262,DCMS,EH,12/05/2011,St James East Compton PCC,0090511442,"87,000.00",Heritage Protection & Planning Group - National Planning Department,GRANTS PAYABLE - PLACES OF WORSHIP
263,DCMS,EH,24/08/2011,St James East Compton PCC,0090511933,"21,000.00",Heritage Protection & Planning Group - National Planning Department,GRANTS PAYABLE - PLACES OF WORSHIP
264,DCMS,EH,24/08/2011,St James East Compton PCC,0090511933,"57,300.00",Heritage Protection & Planning Group - National Planning Department,GRANTS PAYABLE - PLACES OF WORSHIP
265,DCMS,EH,20/06/2011,St Josephs Parish Council,0090511622,"57,600.00",Heritage Protection & Planning Group - National Planning Department,GRANTS PAYABLE - PLACES OF WORSHIP
266,DCMS,EH,11/07/2011,Sandys Row Synagogue,0090511691,"8,500.00",Heritage Protection & Planning Group - National Planning Department,GRANTS PAYABLE - PLACES OF WORSHIP
267,DCMS,EH,11/07/2011,Sandys Row Synagogue,0090511691,"104,000.00",Heritage Protection & Planning Group - National Planning Department,GRANTS PAYABLE - PLACES OF WORSHIP
268,DCMS,EH,16/05/2011,St Barnabas PCC,0090511485,"34,200.00",Heritage Protection & Planning Group - National Planning Department,GRANTS PAYABLE - PLACES OF WORSHIP
269,DCMS,EH,18/07/2011,Alderley Edge Methodist Church,0090511745,"55,897.00",Heritage Protection & Planning Group - National Planning Department,GRANTS PAYABLE - PLACES OF WORSHIP
270,DCMS,EH,10/08/2011,Otterhampton with Combwich PCC,0090511860,"53,550.00",Heritage Protection & Planning Group - National Planning Department,GRANTS PAYABLE - PLACES OF WORSHIP
271,DCMS,EH,18/05/2011,PCC of St Leonard Shoreditch,0090511490,"64,577.00",Heritage Protection & Planning Group - National Planning Department,GRANTS PAYABLE - PLACES OF WORSHIP
272,DCMS,EH,25/05/2011,Industrial Building Pres Trust Ltd,0090511521,"62,000.00",Heritage Protection & Planning Group - National Planning Department,GRANTS PAYABLE - HISTORIC BUILDINGS
273,DCMS,EH,12/05/2011,Hagley Hall,0090511452,"98,750.00",Heritage Protection & Planning Group - National Planning Department,GRANTS PAYABLE - HISTORIC BUILDINGS
274,DCMS,EH,11/07/2011,Hagley Hall,0090511716,"98,750.00",Heritage Protection & Planning Group - National Planning Department,GRANTS PAYABLE - HISTORIC BUILDINGS
275,DCMS,EH,08/08/2011,Derbyshire County Council,0090511834,"250,000.00",Heritage Protection & Planning Group - National Planning Department,GRANTS PAYABLE - HISTORIC BUILDINGS
276,DCMS,EH,31/08/2011,Hermitage Housing Association Ltd,0090511966,"46,000.00",Heritage Protection & Planning Group - National Planning Department,GRANTS PAYABLE - HISTORIC BUILDINGS
277,DCMS,EH,18/04/2011,Castle Eaton PCC,0090511276,"60,000.00",Heritage Protection & Planning Group - National Planning Department,GRANTS PAYABLE - PLACES OF WORSHIP
278,DCMS,EH,31/08/2011,Castle Eaton PCC,0090511964,"8,000.00",Heritage Protection & Planning Group - National Planning Department,GRANTS PAYABLE - PLACES OF WORSHIP
279,DCMS,EH,31/08/2011,Castle Eaton PCC,0090511964,"44,595.00",Heritage Protection & Planning Group - National Planning Department,GRANTS PAYABLE - PLACES OF WORSHIP
280,DCMS,EH,12/08/2011,Trustees of Firle Est Settlement,0090511870,"72,000.00",Heritage Protection & Planning Group - National Planning Department,GRANTS PAYABLE - HISTORIC BUILDINGS
281,DCMS,EH,08/08/2011,Thixendale PCC,0090511843,"1,000.00",Heritage Protection & Planning Group - National Planning Department,GRANTS PAYABLE - PLACES OF WORSHIP
282,DCMS,EH,08/08/2011,Thixendale PCC,0090511843,"26,000.00",Heritage Protection & Planning Group - National Planning Department,GRANTS PAYABLE - PLACES OF WORSHIP
283,DCMS,EH,08/06/2011,St Celement's PCC,0090511576,"82,800.00",Heritage Protection & Planning Group - National Planning Department,GRANTS PAYABLE - PLACES OF WORSHIP
284,DCMS,EH,20/06/2011,Thornhill PCC,0090511633,"39,750.00",Heritage Protection & Planning Group - National Planning Department,GRANTS PAYABLE - PLACES OF WORSHIP
285,DCMS,EH,04/07/2011,St Mary the Virgin Upchurch PCC,0090511694,"27,500.00",Heritage Protection & Planning Group - National Planning Department,GRANTS PAYABLE - PLACES OF WORSHIP
286,DCMS,EH,27/04/2011,The PCC of St Martin's Barcheston,0090511365,"38,250.00",Heritage Protection & Planning Group - National Planning Department,GRANTS PAYABLE - PLACES OF WORSHIP
287,DCMS,EH,13/07/2011,Wattisfield PCC,0090511709,"18,500.00",Heritage Protection & Planning Group - National Planning Department,GRANTS PAYABLE - PLACES OF WORSHIP
288,DCMS,EH,13/07/2011,Wattisfield PCC,0090511709,"21,000.00",Heritage Protection & Planning Group - National Planning Department,GRANTS PAYABLE - PLACES OF WORSHIP
289,DCMS,EH,13/06/2011,Hopton PCC,0090511596,"33,750.00",Heritage Protection & Planning Group - National Planning Department,GRANTS PAYABLE - PLACES OF WORSHIP
290,DCMS,EH,09/05/2011,Wangford PCC,0090511411,"52,000.00",Heritage Protection & Planning Group - National Planning Department,GRANTS PAYABLE - PLACES OF WORSHIP
291,DCMS,EH,21/06/2011,Great Ryburgh PCC,0090511641,"53,500.00",Heritage Protection & Planning Group - National Planning Department,GRANTS PAYABLE - PLACES OF WORSHIP
292,DCMS,EH,01/06/2011,PCC North & South Clifton,0090511561,"31,000.00",Heritage Protection & Planning Group - National Planning Department,GRANTS PAYABLE - PLACES OF WORSHIP
293,DCMS,EH,20/07/2011,Broseley with Benthall PCC,0090511780,"47,500.00",Heritage Protection & Planning Group - National Planning Department,GRANTS PAYABLE - PLACES OF WORSHIP
294,DCMS,EH,18/05/2011,"PCC of St Edmund, Thurne",0090511487,"40,250.00",Heritage Protection & Planning Group - National Planning Department,GRANTS PAYABLE - PLACES OF WORSHIP
295,DCMS,EH,29/06/2011,"PCC of All Saints, Nocton, Lincolnshire",0090511652,"58,500.00",Heritage Protection & Planning Group - National Planning Department,GRANTS PAYABLE - PLACES OF WORSHIP
296,DCMS,EH,18/04/2011,Ashover Parochial Church Council,0090511269,"33,000.00",Heritage Protection & Planning Group - National Planning Department,GRANTS PAYABLE - PLACES OF WORSHIP
297,DCMS,EH,18/04/2011,PCC of Wherwell,0090511278,"64,000.00",Heritage Protection & Planning Group - National Planning Department,GRANTS PAYABLE - PLACES OF WORSHIP
298,DCMS,EH,29/06/2011,Commitee Newnham PCC,0090511664,"39,108.00",Heritage Protection & Planning Group - National Planning Department,GRANTS PAYABLE - PLACES OF WORSHIP
299,DCMS,EH,24/08/2011,Stow PCC,0090511943,"46,000.00",Heritage Protection & Planning Group - National Planning Department,GRANTS PAYABLE - PLACES OF WORSHIP
300,DCMS,EH,04/07/2011,Lowther PCC,0090511706,"55,500.00",Heritage Protection & Planning Group - National Planning Department,GRANTS PAYABLE - PLACES OF WORSHIP
301,DCMS,EH,18/05/2011,St Margarets PCC & Friends,0090511492,"72,000.00",Heritage Protection & Planning Group - National Planning Department,GRANTS PAYABLE - PLACES OF WORSHIP
302,DCMS,EH,11/07/2011,Thaxted PCC Restoration Account,0090511713,"25,000.00",Heritage Protection & Planning Group - National Planning Department,GRANTS PAYABLE - PLACES OF WORSHIP
303,DCMS,EH,01/06/2011,PCC St Ann Manchester,0090511556,"36,000.00",Heritage Protection & Planning Group - National Planning Department,GRANTS PAYABLE - PLACES OF WORSHIP
304,DCMS,EH,18/05/2011,St Martins Ashton Upon Mersey PCC,0090511493,"60,500.00",Heritage Protection & Planning Group - National Planning Department,GRANTS PAYABLE - PLACES OF WORSHIP
305,DCMS,EH,27/04/2011,"St Nicholas Church, Warwick PCC",0090511364,"36,500.00",Heritage Protection & Planning Group - National Planning Department,GRANTS PAYABLE - PLACES OF WORSHIP
306,DCMS,EH,27/04/2011,St Georges Parish DCC,0090511350,"47,500.00",Heritage Protection & Planning Group - National Planning Department,GRANTS PAYABLE - PLACES OF WORSHIP
307,DCMS,EH,27/07/2011,St Georges Parish PCC,0090511806,"16,500.00",Heritage Protection & Planning Group - National Planning Department,GRANTS PAYABLE - PLACES OF WORSHIP
308,DCMS,EH,27/07/2011,St Georges Parish PCC,0090511806,"26,250.00",Heritage Protection & Planning Group - National Planning Department,GRANTS PAYABLE - PLACES OF WORSHIP
309,DCMS,EH,27/05/2011,St George & All Saints PCC,0090511543,"52,500.00",Heritage Protection & Planning Group - National Planning Department,GRANTS PAYABLE - PLACES OF WORSHIP
310,DCMS,EH,08/08/2011,St Mary's Church Everdon PCC,0090511854,"47,500.00",Heritage Protection & Planning Group - National Planning Department,GRANTS PAYABLE - PLACES OF WORSHIP
311,DCMS,EH,29/06/2011,Thakeham PCC,0090511658,"16,000.00",Heritage Protection & Planning Group - National Planning Department,GRANTS PAYABLE - PLACES OF WORSHIP
312,DCMS,EH,29/06/2011,Thakeham PCC,0090511658,"33,000.00",Heritage Protection & Planning Group - National Planning Department,GRANTS PAYABLE - PLACES OF WORSHIP
313,DCMS,EH,15/08/2011,Brighton St Peter,0090511875,"87,000.00",Heritage Protection & Planning Group - National Planning Department,GRANTS PAYABLE - PLACES OF WORSHIP
314,DCMS,EH,04/07/2011,"PCC of St Mary the Virgin, Kempsey",0090511697,"27,000.00",Heritage Protection & Planning Group - National Planning Department,GRANTS PAYABLE - PLACES OF WORSHIP
315,DCMS,EH,22/08/2011,"PCC of St Margaret, Little Dunham",0090511928,"76,000.00",Heritage Protection & Planning Group - National Planning Department,GRANTS PAYABLE - PLACES OF WORSHIP
316,DCMS,EH,13/04/2011,"PCC of St Martin's Church, Seamer",0090511262,"98,000.00",Heritage Protection & Planning Group - National Planning Department,GRANTS PAYABLE - PLACES OF WORSHIP
317,DCMS,EH,11/07/2011,"PCC of St Martin's Church, Seamer",0090511714,"7,200.00",Heritage Protection & Planning Group - National Planning Department,GRANTS PAYABLE - PLACES OF WORSHIP
318,DCMS,EH,11/07/2011,"PCC of St Martin's Church, Seamer",0090511714,"81,000.00",Heritage Protection & Planning Group - National Planning Department,GRANTS PAYABLE - PLACES OF WORSHIP
319,DCMS,EH,20/07/2011,Easton-in-Gordano PCC St Georges,0090511765,"32,998.00",Heritage Protection & Planning Group - National Planning Department,GRANTS PAYABLE - PLACES OF WORSHIP
320,DCMS,EH,29/06/2011,Clearwell PCC,0090511685,"113,000.00",Heritage Protection & Planning Group - National Planning Department,GRANTS PAYABLE - PLACES OF WORSHIP
321,DCMS,EH,11/07/2011,St Chad's Parochial Church Council,0090511719,"113,000.00",Heritage Protection & Planning Group - National Planning Department,GRANTS PAYABLE - PLACES OF WORSHIP
322,DCMS,EH,29/06/2011,Coveney PCC,0090511666,"33,000.00",Heritage Protection & Planning Group - National Planning Department,GRANTS PAYABLE - PLACES OF WORSHIP
323,DCMS,EH,09/05/2011,Ruardean PCC,0090511419,"67,500.00",Heritage Protection & Planning Group - National Planning Department,GRANTS PAYABLE - PLACES OF WORSHIP
324,DCMS,EH,29/06/2011,PCC St John The Baptist,0090511677,"37,800.00",Heritage Protection & Planning Group - National Planning Department,GRANTS PAYABLE - PLACES OF WORSHIP
325,DCMS,EH,11/07/2011,Catton District Church Council,0090511715,"41,400.00",Heritage Protection & Planning Group - National Planning Department,GRANTS PAYABLE - PLACES OF WORSHIP
326,DCMS,EH,27/07/2011,Whaddon PCC,0090511803,"52,650.00",Heritage Protection & Planning Group - National Planning Department,GRANTS PAYABLE - PLACES OF WORSHIP
327,DCMS,EH,18/04/2011,St Mary the Virgin Long Crendon PCC,0090511285,"28,500.00",Heritage Protection & Planning Group - National Planning Department,GRANTS PAYABLE - PLACES OF WORSHIP
328,DCMS,EH,24/08/2011,St Mary the Virgin Long Crendon PCC,0090511934,"1,564.00",Heritage Protection & Planning Group - National Planning Department,GRANTS PAYABLE - PLACES OF WORSHIP
329,DCMS,EH,24/08/2011,St Mary the Virgin Long Crendon PCC,0090511934,"24,086.00",Heritage Protection & Planning Group - National Planning Department,GRANTS PAYABLE - PLACES OF WORSHIP
330,DCMS,EH,27/05/2011,Newton St Petrock PCC,0090511541,"47,000.00",Heritage Protection & Planning Group - National Planning Department,GRANTS PAYABLE - PLACES OF WORSHIP
331,DCMS,EH,20/07/2011,Rampton PCC,0090511771,"50,400.00",Heritage Protection & Planning Group - National Planning Department,GRANTS PAYABLE - PLACES OF WORSHIP
332,DCMS,EH,27/05/2011,Sedgeford PCC,0090511538,"52,200.00",Heritage Protection & Planning Group - National Planning Department,GRANTS PAYABLE - PLACES OF WORSHIP
333,DCMS,EH,08/08/2011,Atherington PCC,0090511852,"76,500.00",Heritage Protection & Planning Group - National Planning Department,GRANTS PAYABLE - PLACES OF WORSHIP
334,DCMS,EH,15/06/2011,PCC of St John of Jerusalem,0090511608,"47,456.00",Heritage Protection & Planning Group - National Planning Department,GRANTS PAYABLE - PLACES OF WORSHIP
335,DCMS,EH,18/07/2011,Cherry Willingham PCC,0090511749,"42,500.00",Heritage Protection & Planning Group - National Planning Department,GRANTS PAYABLE - PLACES OF WORSHIP
336,DCMS,EH,12/05/2011,PCC of High Bickington,0090511463,"91,000.00",Heritage Protection & Planning Group - National Planning Department,GRANTS PAYABLE - PLACES OF WORSHIP
337,DCMS,EH,29/06/2011,St Matthew's PCC,0090511667,"27,000.00",Heritage Protection & Planning Group - National Planning Department,GRANTS PAYABLE - PLACES OF WORSHIP
338,DCMS,EH,08/08/2011,Tibenham PCC,0090511856,"52,500.00",Heritage Protection & Planning Group - National Planning Department,GRANTS PAYABLE - PLACES OF WORSHIP
339,DCMS,EH,25/07/2011,St Mary's PCC,0090511788,"40,950.00",Heritage Protection & Planning Group - National Planning Department,GRANTS PAYABLE - PLACES OF WORSHIP
340,DCMS,EH,13/04/2011,"Sharlston Dovecote, Sharlston",0090511258,"32,203.00",Heritage Protection & Planning Group - National Planning Department,GRANTS PAYABLE - HISTORIC BUILDINGS
341,DCMS,EH,18/07/2011,"Sharlston Dovecote, Sharlston",0090511739,"33,600.00",Heritage Protection & Planning Group - National Planning Department,GRANTS PAYABLE - HISTORIC BUILDINGS
342,DCMS,EH,15/06/2011,Morvah Church,0090511605,"44,000.00",Heritage Protection & Planning Group - National Planning Department,GRANTS PAYABLE - PLACES OF WORSHIP
343,DCMS,EH,25/07/2011,PCC St Barnabas Sutton,0090511792,"53,000.00",Heritage Protection & Planning Group - National Planning Department,GRANTS PAYABLE - PLACES OF WORSHIP
344,DCMS,EH,12/05/2011,PCC St Barnabas Church,0090511440,"45,500.00",Heritage Protection & Planning Group - National Planning Department,GRANTS PAYABLE - PLACES OF WORSHIP
345,DCMS,EH,15/08/2011,PCC St Barnabas Church,0090511884,"31,375.00",Heritage Protection & Planning Group - National Planning Department,GRANTS PAYABLE - PLACES OF WORSHIP
346,DCMS,EH,13/06/2011,PCC of St Martin with St Francis,0090511593,"37,000.00",Heritage Protection & Planning Group - National Planning Department,GRANTS PAYABLE - PLACES OF WORSHIP
347,DCMS,EH,13/07/2011,St James Bix PCC,0090511730,"73,500.00",Heritage Protection & Planning Group - National Planning Department,GRANTS PAYABLE - PLACES OF WORSHIP
348,DCMS,EH,18/07/2011,St Nicholas' PCC,0090511746,"81,500.00",Heritage Protection & Planning Group - National Planning Department,GRANTS PAYABLE - PLACES OF WORSHIP
349,DCMS,EH,24/08/2011,Gateway Church,0090511936,"76,500.00",Heritage Protection & Planning Group - National Planning Department,GRANTS PAYABLE - PLACES OF WORSHIP
350,DCMS,EH,24/08/2011,St Cuthberts PCC,0090511935,"78,500.00",Heritage Protection & Planning Group - National Planning Department,GRANTS PAYABLE - PLACES OF WORSHIP
351,DCMS,EH,20/06/2011,Hoyland St Peter's PCC,0090511635,"53,000.00",Heritage Protection & Planning Group - National Planning Department,GRANTS PAYABLE - PLACES OF WORSHIP
352,DCMS,EH,08/08/2011,Hoyland St Peter's PCC,0090511840,"47,700.00",Heritage Protection & Planning Group - National Planning Department,GRANTS PAYABLE - PLACES OF WORSHIP
353,DCMS,EH,10/08/2011,Hope Baptist Church--John Fawcett Centre,0090511859,"60,000.00",Heritage Protection & Planning Group - National Planning Department,GRANTS PAYABLE - PLACES OF WORSHIP
354,DCMS,EH,04/05/2011,The Corporate Body of Lincoln Cathedral,0090511406,"187,500.00",Heritage Protection & Planning Group - National Planning Department,GRANTS PAYABLE - HISTORIC BUILDINGS
355,DCMS,EH,25/07/2011,Station Developments Ltd,0090511794,"88,022.00",Heritage Protection & Planning Group - National Planning Department,GRANTS PAYABLE - HISTORIC BUILDINGS
356,DCMS,EH,16/05/2011,Yarto Europe Ltd,0001072977,"26,745.98",National Collections Group - Retail Dept,TOTAL STOCK - Retail Goods & Souvenirs Purch
357,DCMS,EH,13/06/2011,Tymeagain Ltd,0001073392,"38,342.40",National Collections Group - Retail Dept,TOTAL STOCK - Retail Goods & Souvenirs Purch
